Cogmind - Beta 11 X8 @@@ ROGUE MODE // 2021.11.29 @ 01:32:36 Player: Runia Result: Destroyed by Combat Programmer with EMDS Performance ------------- Evolutions (8) 4000 Regions Visited (25) 5000 Robots Destroyed (375) 1875 Value Destroyed (16509) 16509 Prototype IDs (249) 4980 Alien Tech Used (3) 600 Bonus (7807) 7807 TOTAL SCORE: 40771 Bonus ------- High Alert Combat Kills 1407 Follower Combat Kills 1128 Network Hubs Disabled 600 Aligned with FarCom 300 Met Data Miner 300 Used Data Conduit 3000 Met Zhirov 300 A7 Reached Mainframe 300 Found Hidden Lab 3000 Decrypted A0 Command 3000 Pursued by Intercept 2500 Friendly Fire -8028 Cogmind --------- Core Integrity 0/1450 Matter 290/300 Energy 97/100 System Corruption 17% Temperature Cool (0) Movement Core (200) Ox3 Location -2/Research Parts ------- > --- POWER (3) -------- (None) > --- PROPULSION (6) --- (None) > --- UTILITY (12) ----- (None) > --- WEAPON (3) ------- Linked Autogun > --- INVENTORY (5) ---- Ghost Barrier Quantum Router Fusion Bomb Launcher Improved Remote Datajack Peak State ------------ > --- POWER ------------ Improved Quantum Reactor Improved Quantum Reactor Improved Quantum Reactor > --- PROPULSION ------- Centrium Leg Centrium Leg Centrium Leg Centrium Leg Centrium Leg Centrium Leg > --- UTILITY ---------- Advanced Power Amplifier High-capacity Storage Unit Advanced Visual Processing Unit Long-range Terrain Scanner Advanced Terrain Scan Processor Experimental Targeting Computer Centrium Medium Armor Plating Medium Regenerative Plating EM Dispersion Field Improved Force Field System Mapper Quantum Router > --- WEAPON ----------- Force Lance Force Lance Force Lance > --- INVENTORY -------- Particle Reactor Particle Reactor Particle Reactor Centrium Leg Advanced Cooling System Advanced Coolant Injector Energy Well Improved Matter Compressor Antimissile System Deep Network Scanner Ghost Barrier Quantum Router Plasma Rifle Force Rifle Nova Cannon Fusion Bomb Launcher Hellfire Missile Launcher Hellfire Missile Launcher Improved Remote Datajack [Rating: 198] Favorites ----------- Power Angular Momentum Engine Engine Angular Momentum Engine Power Core Light Nuclear Core Reactor Quantum Reactor Propulsion Enhanced Biometal Leg Treads Light Treads Leg Enhanced Biometal Leg Wheel Wheel Hover Unit Combat Linear Gravjet Utility High-capacity Storage Unit Device Coolant Injector Storage High-capacity Storage Unit Processor Advanced Visual Processing Unit Hackware System Mapper Protection Centrium Medium Armor Plating Weapon Enhanced Autogun Energy Gun Plasma Rifle Energy Cannon Heavy Phase Cannon Ballistic Gun Enhanced Autogun Ballistic Cannon Heavy Assault Cannon Launcher Heavy Rocket Launcher Special Weapon Plasma Cutter Impact Weapon Powered Hammer Slashing Weapon Power Sword Piercing Weapon Force Lance Special Melee Weapon Advanced Datajack Build | -11 -10 -10 -10 -9 -8 -7 -7 -7 -7 -6 -6 -6 -6 -6 -6 -5 -5 -5 -5 -4 -4 -4 -4 -3 -2 ------- Run | Scr Mat Min Exi Min Mat Fac Low Low Dat Pro Fac Ext Cet Arc Hub Fac Upp Upp Zhi Pro Fac Arm Lab Res Res Slots Evolved 16 | . . . . . 4 2 . . . . 2 . . . . 2 . . . . 2 . . 2 2 Power 2 | . . . . . . . . . . . . . . . . 1 . . . . . . . . 1 Propulsion 4 | . . . . . 2 . . . . . . . . . . . . . . . 1 . . . 1 Utility 9 | . . . . . 2 1 . . . . 2 . . . . 1 . . . . 1 . . 2 . Weapon 1 | . . . . . . 1 . . . . . . . . . . . . . . . . . . . Parts Attached 524 | 3 14 3 . 3 84 34 12 10 3 7 15 19 13 12 67 51 4 1 7 31 42 29 15 9 36 Power 29 | . 1 1 . . 4 1 . . . . . 1 1 . 3 6 . . . 1 3 . . 2 5 Engine 11 | . 1 . . . 3 1 . . . . . 1 . . 1 3 . . . 1 . . . . . Core 4 | . . 1 . . 1 . . . . . . . . . . 2 . . . . . . . . . Reactor 14 | . . . . . . . . . . . . . 1 . 2 1 . . . . 3 . . 2 5 Propulsion 101 | 2 3 1 . . 29 4 1 1 . 1 2 9 2 . 15 6 . . . . 4 18 1 . 2 Treads 15 | 2 3 1 . . 9 . . . . . . . . . . . . . . . . . . . . Leg 80 | . . . . . 19 4 1 1 . 1 2 9 2 . 15 6 . . . . 4 13 1 . 2 Wheel 1 | . . . . . 1 . . . . . . . . . . . . . . . . . . . . Hover 5 | . . . . . . . . . . . . . . . . . . . . . . 5 . . . Flight . | . . . . . . . . . . . . . . . . . . . . . . . . . . Utility 163 | . 3 1 . 1 16 7 6 5 . 4 9 5 4 6 21 15 3 . 3 11 10 6 6 7 14 Device 91 | . . . . . 5 2 4 4 . 2 4 2 1 6 15 7 3 . . 6 7 5 5 4 9 Storage 8 | . 1 . . . . . . . . . 1 . . . . . . . 1 . 1 1 . . 3 Processor 8 | . . . . . 1 1 1 . . . . . . . 1 . . . . . 1 . . 1 2 Hackware 5 | . . . . . . 2 . . . . . . . . . 1 . . . 1 . . . 1 . Protection 51 | . 2 1 . 1 10 2 1 1 . 2 4 3 3 . 5 7 . . 2 4 1 . 1 1 . Artifact . | . . . . . . . . . . . . . . . . . . . . . . . . . . Weapon 231 | 1 7 . . 2 35 22 5 4 3 2 4 4 6 6 28 24 1 1 4 19 25 5 8 . 15 Energy Gun 59 | 1 . . . . 1 . . . . . . 1 1 . 15 10 . 1 2 10 13 1 3 . . Energy Cannon 30 | . . . . . 1 . . . . . . . . . 4 7 . . 1 6 4 1 1 . 5 Ballistic Gun 57 | . 5 . . 1 22 10 1 1 1 1 1 3 5 3 . . 1 . . 1 . . . . 1 Ballistic Cannon 1 | . . . . . 1 . . . . . . . . . . . . . . . . . . . . Launcher 29 | . . . . 1 7 8 2 1 . 1 1 . . . . . . . . 2 2 . . . 4 Special Weapon 8 | . . . . . . . . . 2 . . . . 2 3 . . . . . . . 1 . . Impact Weapon 6 | . 2 . . . 2 . . 2 . . . . . . . . . . . . . . . . . Slashing Weapon 24 | . . . . . . 4 2 . . . 2 . . . 6 7 . . 1 . 2 . . . . Piercing Weapon 15 | . . . . . . . . . . . . . . . . . . . . . 4 3 3 . 5 Special Melee Weapon 2 | . . . . . 1 . . . . . . . . 1 . . . . . . . . . . . Unidentified Prototypes 13 | . . . . . 4 . . . . . . . . . 1 2 . . 1 . . 1 3 . 1 Corrupted Parts 5 | . . . . . . . . . . . . . 3 . . . . . . 1 . . 1 . . System Corruption 21 | . . . . . . . . . . . . . 13 . . . . . . 6 . . 2 . . Parts Lost 71 | . 2 1 . . 4 3 . . . . . 1 . . 5 15 . . . 2 6 . . 2 30 Power 11 | . 1 1 . . 1 . . . . . . . . . 1 3 . . . . . . . . 4 Propulsion 14 | . 1 . . . 1 2 . . . . . 1 . . . 3 . . . . 1 . . . 5 Utility 28 | . . . . . 2 1 . . . . . . . . 3 3 . . . 1 2 . . 2 14 Weapon 18 | . . . . . . . . . . . . . . . 1 6 . . . 1 3 . . . 7 Highest Loss Streak 16 | . 2 1 . . 1 1 . . . . . 1 . . 1 9 . . . 1 6 . . 1 16 Average Slot Usage (%) 98 | . 95 100 100 100 97 95 99 100 100 100 99 100 99 99 99 92 100 100 84 97 97 99 99 99 87 Engine 4 | . 14 . . . 5 7 7 7 7 7 6 6 2 . . 1 11 11 11 11 7 . . . . Core 2 | . . 13 14 14 2 . . . . . . . . . . 3 . . . . . . . . . Reactor 2 | . . . . . . . . . . . . . 3 6 5 4 . . . . 2 10 10 9 9 Treads 6 | . 27 28 28 28 12 . . . . . . . . . . . . . . . . . . . . Leg 20 | . . . . . 22 29 30 30 30 30 26 26 25 26 26 21 23 23 23 23 24 25 25 22 22 Device 10 | . . . . . 9 6 6 6 7 6 15 11 13 13 14 12 16 17 12 8 14 19 23 19 12 Storage 7 | . 14 14 14 14 9 7 7 7 7 7 6 6 6 6 6 5 5 5 5 5 5 6 5 4 4 Processor 9 | . . . . . 2 12 22 23 23 23 14 13 13 13 13 11 11 11 11 11 10 10 10 13 12 Hackware 1 | . . . . . . . . . . . . . . . . 4 5 5 5 9 5 5 5 9 6 Protection 9 | . 10 14 14 14 14 6 . . . . 7 14 13 13 11 8 5 5 8 9 9 5 5 6 5 Energy Gun 3 | . 3 . . . . . . . . . . . . . 16 8 5 10 . 10 12 7 1 . . Ballistic Gun 12 | . 21 28 28 27 16 21 21 16 16 23 16 19 18 13 . . 3 . . . . . . . . Piercing Weapon 1 | . . . . . . . . . . . . . . . . . . . . . . 5 11 13 9 Naked Turns 3 | . . . . . . . . . . . . . . . . . . . . . . . . . 3 Heaviest Build 149 | 13 54 54 54 54 64 81 79 67 65 67 78 87 100 100 101 103 99 96 101 108 107 101 103 128 149 Greatest Support 180 | 40 40 40 40 40 82 59 69 69 64 72 75 75 71 71 120 120 120 120 120 120 145 150 150 150 180 Greatest Overweight (x) 31 | . 1 1 1 1 2 1 1 . 1 1 1 1 2 31 1 1 . . . . . 1 . . 2 Average Overweight (x) . | . . 1 1 1 . 1 . . . . . 1 1 8 . . . . . . . . . . . Largest Inventory Capacity 20 | 8 20 20 20 20 20 20 20 20 20 20 20 20 20 20 20 20 20 20 20 20 20 20 20 20 20 Average Capacity 19 | 8 17 20 20 20 20 20 20 20 20 20 20 20 20 20 20 20 20 20 20 20 20 20 20 20 19 Most Carried 20 | 6 14 16 16 16 20 20 20 20 20 20 20 20 20 20 20 20 20 20 20 20 20 20 20 20 20 Average Carried 18 | 3 10 14 15 16 19 19 19 19 19 20 19 19 19 19 19 17 19 19 19 19 19 19 19 19 17 Final Capacity 20 | 8 20 20 20 20 20 20 20 20 20 20 20 20 20 20 20 20 20 20 20 20 20 20 20 20 5 Final Carried 20 | 1 14 16 16 15 20 20 20 20 20 20 20 20 19 20 19 20 20 19 20 20 20 20 20 19 4 Class Distribution -------------------- 27% | Scavenger-Mutant 20% | Mutant 14% | Scavenger-Tank 11% | Skirmisher 8% | Scavenger-Skirmisher 4% | Hacker-Mutant 3% | Scavenger-Gunner 3% | Assassin Dominant Class ---------------- Mutant | -10/Materials Mutant | -10/Mines Mutant | -10/Exiles Mutant | -9/Mines Scavenger-Mutant | -8/Materials Scavenger-Skirmisher | -7/Factory Skirmisher | -7/Lower Caves Assassin | -7/Lower Caves Mutant | -7/Data Miner Skirmisher | -6/Proximity Caves Skirmisher | -6/Factory Scavenger-Skirmisher | -6/Extension Scavenger-Tank | -6/Cetus Scavenger-Mutant | -6/Archives Scavenger-Tank | -6/Hub_04(d) Scavenger-Mutant | -5/Factory Scavenger-Gunner | -5/Upper Caves Scavenger-Gunner | -5/Upper Caves Scavenger-Mutant | -5/Zhirov Scavenger-Gunner | -4/Proximity Caves Scavenger-Tank | -4/Factory Hacker-Mutant | -4/Armory Hacker-Mutant | -4/Lab Hacker-Assassin | -3/Research Generator-Assassin | -2/Research Resources | -11 -10 -10 -10 -9 -8 -7 -7 -7 -7 -6 -6 -6 -6 -6 -6 -5 -5 -5 -5 -4 -4 -4 -4 -3 -2 ----------- Run | Scr Mat Min Exi Min Mat Fac Low Low Dat Pro Fac Ext Cet Arc Hub Fac Upp Upp Zhi Pro Fac Arm Lab Res Res Matter Collected 11284 | 200 473 145 . 58 2362 901 196 210 30 128 123 1088 324 387 830 608 164 48 356 955 439 265 223 323 448 Remotely . | . . . . . . . . . . . . . . . . . . . . . . . . . . Salvage Created 18473 | . 738 222 . 82 3220 1877 131 72 30 151 249 1040 88 590 2902 1767 190 59 300 1210 1708 341 . 475 1031 Parts 811 | . 49 14 . 9 167 73 11 2 6 16 11 45 8 38 113 66 11 3 1 41 39 25 . 23 40 Haulers Intercepted 16 | . 2 . . . 6 1 . . . . . . . . 4 1 . . . . . . . 1 1 Recyclers Shooed 15 | . 1 . . . 6 3 . . . . 1 . . . 1 1 . . . 1 1 . . . . Parts Field Recycled . | . . . . . . . . . . . . . . . . . . . . . . . . . . Retrieved Matter . | . . . . . . . . . . . . . . . . . . . . . . . . . . Parts Self-Destructed 77 | . . . . . . . 8 7 . 13 . . . . . . 11 3 . 35 . . . . . Prevented 19 | . . . . . . . . 1 . . . . . . . . . . . 18 . . . . . Kills | -11 -10 -10 -10 -9 -8 -7 -7 -7 -7 -6 -6 -6 -6 -6 -6 -5 -5 -5 -5 -4 -4 -4 -4 -3 -2 ------- Run | Scr Mat Min Exi Min Mat Fac Low Low Dat Pro Fac Ext Cet Arc Hub Fac Upp Upp Zhi Pro Fac Arm Lab Res Res Combat Hostiles Destroyed 265 | . 15 6 . 4 48 25 7 1 . 6 4 17 1 4 28 24 3 1 . 15 16 8 . 4 28 Melee 29 | . 1 . . . . . . . . . . . . . . 11 . . . . 1 6 . 4 6 Guns 133 | . 14 6 . 1 31 9 . 1 . 2 4 17 1 4 21 10 2 . . 1 6 2 . . 1 Cannons 11 | . . . . . 1 . . . . . . . . . . 3 1 1 . 1 . . . . 4 AOE 70 | . . . . 3 16 13 7 . . 4 . . . . . . . . . 8 2 . . . 17 Classes Destroyed 24 | . 7 1 . . 6 3 . 1 . . . . . . . 2 . . . 2 . . . . 2 Worker 19 | . 2 2 . . 4 . . . . . . . . . 7 . . . . . . . . 1 3 Builder 19 | . . 1 . . 4 3 . . . . . . . . . 2 . . . . 2 . . 2 5 Tunneler 4 | . 1 . . . 2 . . . . . . . . . . 1 . . . . . . . . . Hauler 16 | . 2 . . . 6 1 . . . . . . . . 4 1 . . . . . . . 1 1 Recycler 19 | . . . . . 10 4 . . . . . . . . 1 1 . . . 1 2 . . . . Minesweeper 1 | . . . . . . . . 1 . . . . . . . . . . . . . . . . . Mechanic 4 | . . . . . 1 2 . . . . . . . . . . . . . . . . . . 1 Operator 12 | . 1 . . . 1 . . . . . . . . 7 1 . . . . . 1 1 . . . Watcher 16 | . 1 . . . 3 1 . . . . . 1 1 . 4 1 . . . 2 1 . . . 1 Swarmer 41 | . 3 4 . 4 3 . 7 . . 4 . 3 . . . . . . . 4 . 4 . . 5 Grunt 112 | . 12 2 . 1 34 20 . . . . 3 8 . . 9 4 1 1 . 7 5 . . 4 1 Brawler 4 | . . . . . 1 . . . . . 1 . . . . 1 . . . 1 . . . . . Duelist 2 | . . . . . 1 . . . . . . . . . 1 . . . . . . . . . . Protector 2 | . . . . . . 1 . . . . . . . . . . . . . . . . . . 1 Sentry 33 | . . . . . 8 1 . . . . . 6 . 4 4 2 . . . 2 4 . . . 2 Specialist 7 | . . . . . . . . . . . . . . . . 6 . . . . . . . . 1 Hunter 23 | . . . . . . 1 . . . . . . 1 . 4 2 2 . . 4 2 . . . 7 Programmer 25 | . . . . . . 2 . 1 . 2 . . . . 4 5 . . . . 2 4 . . 5 Heavy 3 | . . . . . 1 . . . . . . . . . 1 . . . . . 1 . . . . Behemoth 1 | . . . . . . . . . . . . . . . . . . . . 1 . . . . . Lightning 6 | . . . . . . . . . . . . . . . 6 . . . . . . . . . . Tracker 6 | . . . . . . . . . . . . . . . 1 1 . . . . 2 . . . 2 Combat Programmer 5 | . . . . . . . . . . . . . . . 1 1 . . . . 2 . . . 1 Striker 2 | . . . . . . . . . . . . . . . . . . . . . . . . . 2 Executioner 1 | . . . . . . . . . . . . . . . . . . . . . . . . . 1 Assembled 2 | . . . . . . . . . . . . . . . . 2 . . . . . . . . . Thug 1 | . . . . . . . . . . . . 1 . . . . . . . . . . . . . Fireman 1 | . . . . . . . . . . . . . . . . . . . . 1 . . . . . Best Kill Streak 19 | . 4 2 . 3 11 9 4 1 . 4 4 5 1 4 5 5 2 1 . 6 5 4 . 4 19 Combat Bots Only 14 | . 3 2 . 3 6 5 4 1 . 4 4 5 1 4 5 5 2 1 . 6 5 4 . 4 14 Max Kills in Single Turn 6 | . 2 1 . 3 4 3 3 1 1 4 1 1 1 2 3 1 1 1 . 2 2 1 . 1 6 Gunslinging . | . . . . . . . . . . . . . . . . . . . . . . . . . . Exploded 5 | . . . . 2 3 3 3 . . 4 . . . . . . . . . 2 2 . . . 5 Melee 1 | . 1 . . . . . . . . . . . . . . 1 . . . . 1 1 . 1 1 Uniques/NPCs Destroyed 1 | . . . . . . . . . 1 . . . . . . . . . . . . . . . . *Hamborger (-7/Data Miner) Combat | -11 -10 -10 -10 -9 -8 -7 -7 -7 -7 -6 -6 -6 -6 -6 -6 -5 -5 -5 -5 -4 -4 -4 -4 -3 -2 -------- Run | Scr Mat Min Exi Min Mat Fac Low Low Dat Pro Fac Ext Cet Arc Hub Fac Upp Upp Zhi Pro Fac Arm Lab Res Res Damage Taken 22912 | . 776 302 . 156 2608 869 119 75 . 121 169 815 255 202 2766 2848 59 40 . 1343 2041 302 8 1164 5874 Core 3274 | . 84 49 . . 397 139 . . . . 18 39 11 11 286 223 . . . 83 347 25 . 109 1453 Absorbed by Shields 1201 | . . . . . . . . . . . . 105 217 164 . . . . . . . . . 160 555 Core Remaining (%) 65 | 100 . . . 46 27 . . . . 80 . . . . 57 . . . . 69 . . 62 86 . Volleys Fired 1017 | . 46 20 . 6 200 63 3 6 7 7 11 51 19 31 249 74 7 3 . 40 79 15 30 . 50 Largest 3 | . 2 2 . 2 2 3 1 3 1 3 3 3 3 3 3 3 3 3 . 3 3 3 1 . 2 Hottest 257 | . 70 46 . 46 60 75 39 75 20 75 75 84 240 105 231 231 206 248 . 257 238 240 98 . 240 Shots Fired 1972 | . 92 40 . 10 363 138 3 16 7 19 31 153 55 68 453 125 22 8 . 57 193 29 30 . 60 Gun 1546 | . 92 40 . 8 326 114 . 15 . 18 30 153 55 57 320 82 15 5 . 19 171 21 . . 5 Cannon 216 | . . . . . 18 . . . . . . . . . 20 43 7 3 . 29 20 8 29 . 39 Launcher 78 | . . . . 2 19 24 3 1 . 1 1 . . . . . . . . 9 2 . . . 16 Special 132 | . . . . . . . . . 7 . . . . 11 113 . . . . . . . 1 . . Kinetic 925 | . 71 40 . 8 344 114 . 15 . 18 30 153 54 57 9 . 7 . . . . . . . 5 Thermal 907 | . 21 . . . . . . . 6 . . . 1 11 437 97 15 8 . 23 191 29 29 . 39 Explosive 54 | . . . . 2 19 . 3 1 . 1 1 . . . . . . . . 9 2 . . . 16 Electromagnetic 80 | . . . . . . 24 . . . . . . . . 3 28 . . . 25 . . . . . Robot Hit Streak 37 | . 14 11 . 5 14 12 5 7 3 5 13 11 7 10 31 37 12 3 . 16 18 7 2 . 11 Robot Miss Streak 7 | . 4 2 . 1 6 3 . 1 2 2 2 4 4 3 5 7 1 2 . 2 2 2 . . 5 Penetration Max 1 | . . . . . 1 . . . . . . 1 1 1 1 . 1 . . 1 . . . . . Secondary Targets 13 | . . 3 . . . . . . . . 1 2 . 1 3 1 . . . . 2 . . . . Max Gunslinging Chain 1 | . . 1 . . . . . . . . 1 1 . 1 1 1 . . . . 1 . . . . Shots Hit Robots 1437 | . 77 26 . 7 235 87 2 11 5 11 26 93 36 45 323 146 14 4 7 46 138 27 1 23 47 Core Hits 728 | . 39 11 . 4 144 65 9 2 3 7 13 41 13 24 105 51 5 2 3 34 52 14 . 16 71 Critical Kills 12 | . 1 . . . 1 . . . . . . 1 . 7 1 . 1 . . . . . . . . Critical Parts Destroyed 10 | . 1 . . . 1 1 . . . . . 3 1 1 . . 1 . . . . 1 . . . Critical Strikes 83 | . 2 . . . 4 1 . . . . 1 4 1 9 27 7 2 . . 4 12 3 . 5 1 Burn 36 | . . . . . . . . . . . . . . . 20 2 . . . 2 12 . . . . Destroy 23 | . 2 . . . 2 1 . . . . . 4 1 9 1 . 2 . . . . 1 . . . Blast 2 | . . . . . 2 . . . . . . . . . . . . . . . . . . . . Corrupt 3 | . . . . . . . . . . . . . . . . 1 . . . 2 . . . . . Sever 11 | . . . . . . . . . . . 1 . . . 6 4 . . . . . . . . . Puncture 8 | . . . . . . . . . . . . . . . . . . . . . . 2 . 5 1 Melee Attacks 318 | . 23 . . . 3 2 4 5 . . 5 . . 1 9 95 . . 7 . 17 31 39 50 27 Impact 31 | . 23 . . . 3 . . 5 . . . . . . . . . . . . . . . . . Slashing 126 | . . . . . . 2 4 . . . 5 . . . 9 95 . . 7 . 4 . . . . Piercing 160 | . . . . . . . . . . . . . . . . . . . . . 13 31 39 50 27 Sneak Attacks 13 | . . . . . . . . 1 . . . . . 1 1 5 . . . . 1 . . 4 . Combat Hostiles . | . . . . . . . . . . . . . . . . . . . . . . . . . . Follow-up Attacks 18 | . 4 . . . . . . . . . . . . . . . . . . . . 3 . 9 2 Damage Inflicted 51336 | . 931 408 . 381 6851 3574 586 295 43 540 518 2245 854 1190 7616 5486 438 128 903 3127 4015 1057 . 1541 8609 Guns 24053 | . 721 408 . 71 3752 1466 . 213 . 248 439 2245 854 1107 6090 1704 284 51 . 411 3385 414 . . 190 Cannons 4175 | . . . . . 601 . . . . . . . . . 88 1054 154 77 . 1556 37 . . . 608 Explosions 14044 | . . . . 310 2450 2108 477 . . 292 . . . . 101 . . . . 1160 173 . . . 6973 Melee 7654 | . 210 . . . 36 . 109 82 . . 79 . . . 96 2728 . . 903 . 420 643 . 1510 838 Ramming 290 | . . . . . 12 . . . . . . . . . 247 . . . . . . . . 31 . Kinetic 12458 | . 532 408 . 71 4353 1466 . 213 . 248 439 2245 854 1107 140 . 192 . . . . . . . 190 Thermal 15166 | . 189 . . 57 . 388 . . 43 . . . . 83 6944 2124 246 128 . 520 3422 414 . . 608 Explosive 11778 | . . . . 253 2450 . 477 . . 292 . . . . . . . . . 1160 173 . . . 6973 Electromagnetic 3990 | . . . . . . 1720 . . . . . . . . 189 634 . . . 1447 . . . . . Impact 328 | . 210 . . . 36 . . 82 . . . . . . . . . . . . . . . . . Slashing 3915 | . . . . . . . 109 . . . 79 . . . 96 2728 . . 903 . . . . . . Piercing 3411 | . . . . . . . . . . . . . . . . . . . . . 420 643 . 1510 838 Highest Corruption 23 | . . . . . . . . 1 1 2 . 2 15 15 18 16 16 16 16 23 1 2 4 . 17 Average Corruption 7 | . . . . . . . . 1 1 1 . 2 6 9 6 10 16 16 16 16 1 1 2 . 6 Corruption Purged 15 | . . . . . . . . . . . . . . 15 . . . . . . . . . . . Effects 284 | . . . . . . . . 1 . 4 . 9 14 18 48 71 15 17 9 52 2 6 11 . 7 Message Errors 74 | . . . . . . . . 1 . 1 . 4 4 6 10 15 2 5 1 13 2 4 5 . 1 Matter Fused 47 | . . . . . . . . . . . . . 1 4 12 9 4 4 1 10 . . . . 2 Heat Flow Errors 42 | . . . . . . . . . . 2 . 2 1 2 6 13 1 3 3 8 . . 1 . . Energy Discharges 38 | . . . . . . . . . . 1 . 1 3 3 6 10 2 1 . 6 . . 3 . 2 Parts Rejected 2 | . . . . . . . . . . . . . . 1 . 1 . . . . . . . . . Data Loss (minor) 41 | . . . . . . . . . . . . 2 3 . 9 11 2 1 3 6 . 2 2 . . Data Loss (major) 14 | . . . . . . . . . . . . . . 1 2 5 1 2 1 1 . . . . 1 Misfires 9 | . . . . . . . . . . . . . 1 . . 1 1 . . 6 . . . . . Alerts 5 | . . . . . . . . . . . . . . . 1 2 2 . . . . . . . . Misdirections 2 | . . . . . . . . . . . . . . . . 1 . . . . . . . . 1 Weapon Failures 10 | . . . . . . . . . . . . . 1 1 2 3 . 1 . 2 . . . . . Overload Shots 1 | . . . . . . . . . . . . . 1 . . . . . . . . . . . . Overflow Damage 1877 | . . . . 87 200 42 106 42 . 13 . . . 3 66 199 . . 200 228 81 86 . 273 251 Projectiles 224 | . . . . . 62 . . . . . . . . 3 . . . . . 159 . . . . . Explosions 608 | . . . . 87 124 42 28 . . 13 . . . . . . . . . 69 . . . . 245 Melee 1045 | . . . . . 14 . 78 42 . . . . . . 66 199 . . 200 . 81 86 . 273 6 Knockbacks 11 | . 2 . . . 6 . . . . . . . . . 3 . . . . . . . . . . Impact 5 | . 2 . . . . . . . . . . . . . 3 . . . . . . . . . . Kinetic 5 | . . . . . 5 . . . . . . . . . . . . . . . . . . . . Secondary 1 | . . . . . 1 . . . . . . . . . . . . . . . . . . . . Self-Inflicted Damage 1212 | . . . . 121 288 109 . . . . . . . . 42 71 . . . . . . . . 581 Shots 28 | . . . . 3 7 6 . . . . . . . . 2 1 . . . . . . . . 9 Rammed . | . . . . . . . . . . . . . . . . . . . . . . . . . . Targets Rammed 29 | . . . . . 2 . . . . . . . . . 25 . . . . . . . . 2 . Kicked 29 | . . . . . 2 . . . . . . . . . 25 . . . . . . . . 2 . Crushed . | . . . . . . . . . . . . . . . . . . . . . . . . . . Highest Temperature 558 | . 158 70 . 16 259 277 . 150 . 263 231 196 241 155 308 245 342 252 145 283 199 186 199 . 558 Average Temperature 75 | . 39 54 . 11 50 92 . 76 . 85 95 74 79 68 75 55 118 116 64 75 84 88 97 . 111 Received Heat Transfer 3383 | . 390 99 . . 1098 291 . . . . 63 227 13 28 297 54 18 18 . 78 402 . . 270 37 Effects 3 | . . . . . 1 1 . . . . . . . . . . . . . . . . . . 1 Energy Bleed 2 | . . . . . 1 . . . . . . . . . . . . . . . . . . . 1 Interference 1 | . . . . . . 1 . . . . . . . . . . . . . . . . . . . Siege Activations . | . . . . . . . . . . . . . . . . . . . . . . . . . . Robots Corrupted 12 | . . . . . . 4 . . . . . . . . . . . . . 8 . . . . . Combat Hostiles 8 | . . . . . . 3 . . . . . . . . . . . . . 5 . . . . . Parts Fried 32 | . . . . . 4 7 . 1 . . . . 2 . 1 4 . . . 13 . . . . . Impact Corruptions 4 | . . . . . 1 . . 3 . . . . . . . . . . . . . . . . . Robots Melted 18 | . . . . . . . . . . . . . . . 11 . . . . . 7 . . . . Combat Hostiles 14 | . . . . . . . . . . . . . . . 7 . . . . . 7 . . . . Parts Melted 100 | . 1 . . . . . . . . . . . . . 48 13 1 . . 1 31 4 . . 1 Heat Transferred 30684 | . 555 . . 50 . 450 . . 148 . . . . 259 16303 3469 296 148 . 864 7180 481 . . 481 Parts Sabotaged 2 | . . . . . . . . . . . . . . . . . . . . . . . . . 2 Parts Stolen . | . . . . . . . . . . . . . . . . . . . . . . . . . . Parts Stripped . | . . . . . . . . . . . . . . . . . . . . . . . . . . Power Chain Reactions 5 | . . . . . . 5 . . . . . . . . . . . . . . . . . . . Missiles Intercepted . | . . . . . . . . . . . . . . . . . . . . . . . . . . Alert | -11 -10 -10 -10 -9 -8 -7 -7 -7 -7 -6 -6 -6 -6 -6 -6 -5 -5 -5 -5 -4 -4 -4 -4 -3 -2 ------- Run | Scr Mat Min Exi Min Mat Fac Low Low Dat Pro Fac Ext Cet Arc Hub Fac Upp Upp Zhi Pro Fac Arm Lab Res Res Peak Influence 1136 | . 237 213 . 88 783 1136 . . . . 192 315 231 244 524 387 . . . . 473 332 . 104 790 Initial 355 | . . 35 . . . 355 . . . . 9 93 112 12 . 247 . . . . 19 231 . . 2 Average 199 | . 109 71 . 38 314 781 . . . . 56 147 152 53 170 211 . . . . 124 253 . 51 271 Maximum Alert Level 4 | . 1 1 . . 3 4 . . . . . 1 1 1 2 1 . . . . 2 1 . . 3 Low Security (%) 61 | 100 94 99 . 100 40 . . . . . 100 53 62 85 57 42 . . . . 84 17 . 100 45 Level 1 24 | . 5 . . . 16 3 . . . . . 46 37 14 37 57 . . . . 10 82 . . 31 Level 2 9 | . . . . . 39 24 . . . . . . . . 4 . . . . . 4 . . . 6 Level 3 4 | . . . . . 3 71 . . . . . . . . . . . . . . . . . . 15 Level 4 . | . . . . . . . . . . . . . . . . . . . . . . . . . . Level 5 . | . . . . . . . . . . . . . . . . . . . . . . . . . . High Security . | . . . . . . . . . . . . . . . . . . . . . . . . . . Max Security . | . . . . . . . . . . . . . . . . . . . . . . . . . . Squads Dispatched 75 | . 4 . . . 9 10 . . . . . 1 . . 11 14 . . . . 11 3 . 6 6 Investigation 13 | . 3 . . . 3 2 . . . . . . . . 2 2 . . . . . . . 1 . Extermination 15 | . . . . . . 1 . . . . . . . . 4 3 . . . . 2 2 . 2 1 Reinforcement 26 | . 1 . . . 5 3 . . . . . 1 . . 3 7 . . . . 3 1 . . 2 Assault 5 | . . . . . 1 4 . . . . . . . . . . . . . . . . . . . Garrison 3 | . . . . . . . . . . . . . . . . . . . . . 3 . . . . Intercept 13 | . . . . . . . . . . . . . . . 2 2 . . . . 3 . . 3 3 Construction Impeded 4 | . . . . . . 2 . . . . . . . . . . . . . . 1 . . . 1 Haulers Reinforced 2 | . . . . . . 1 . . . . . . . . . 1 . . . . . . . . . Active Scanning Responses . | . . . . . . . . . . . . . . . . . . . . . . . . . . Cargo Convoy Interrupts 1 | . . . . . . . . . . . . . . . . . . . . . . . . . 1 Stealth | -11 -10 -10 -10 -9 -8 -7 -7 -7 -7 -6 -6 -6 -6 -6 -6 -5 -5 -5 -5 -4 -4 -4 -4 -3 -2 --------- Run | Scr Mat Min Exi Min Mat Fac Low Low Dat Pro Fac Ext Cet Arc Hub Fac Upp Upp Zhi Pro Fac Arm Lab Res Res Distress Signals 18 | . 2 . . 1 3 . . . . . . 3 1 . 2 3 . . . . 1 1 . 1 . Communications Jammed 107 | . . . . . . . . . . . . . . . . 2 1 . . 15 12 . . . 77 Distress Signals 105 | . . . . . . . . . . . . . . . . 2 1 . . 15 10 . . . 77 Times Spotted 475 | . 35 16 . 5 74 41 8 1 . 7 6 34 7 25 49 41 3 1 . 20 32 18 1 12 39 Peak Tracking Total 15 | . 6 3 . 4 6 6 4 1 . 4 4 7 4 1 5 5 1 1 . 6 5 6 1 4 15 Tactical Retreats 22 | . 1 1 . . 2 3 . . . 1 . 1 . 1 2 8 . . . . . . . 1 1 Traps | -11 -10 -10 -10 -9 -8 -7 -7 -7 -7 -6 -6 -6 -6 -6 -6 -5 -5 -5 -5 -4 -4 -4 -4 -3 -2 ------- Run | Scr Mat Min Exi Min Mat Fac Low Low Dat Pro Fac Ext Cet Arc Hub Fac Upp Upp Zhi Pro Fac Arm Lab Res Res Traps Triggered 16 | . 2 . . . . 4 . . . . 1 2 . . 3 . . . . 2 . . . . 2 Indirectly 3 | . . . . . . 3 . . . . . . . . . . . . . . . . . . . Trap Hack Attempts 16 | . . . . . 16 . . . . . . . . . . . . . . . . . . . . Triggered . | . . . . . . . . . . . . . . . . . . . . . . . . . . Disarmed 1 | . . . . . 1 . . . . . . . . . . . . . . . . . . . . Reprogrammed . | . . . . . . . . . . . . . . . . . . . . . . . . . . Reused . | . . . . . . . . . . . . . . . . . . . . . . . . . . Traps Extracted . | . . . . . . . . . . . . . . . . . . . . . . . . . . Installed . | . . . . . . . . . . . . . . . . . . . . . . . . . . Triggered 5 | . . . . . . 1 . 2 . 1 . . . . . . 1 . . . . . . . . Machines | -11 -10 -10 -10 -9 -8 -7 -7 -7 -7 -6 -6 -6 -6 -6 -6 -5 -5 -5 -5 -4 -4 -4 -4 -3 -2 ---------- Run | Scr Mat Min Exi Min Mat Fac Low Low Dat Pro Fac Ext Cet Arc Hub Fac Upp Upp Zhi Pro Fac Arm Lab Res Res Machines Disabled 84 | . . 1 . 1 3 18 . . . . 8 2 4 4 28 2 . . . 1 2 2 8 . . Max in Single Turn 14 | . . 1 . 1 2 5 . . . . 3 1 1 1 14 1 . . . 1 1 1 1 . . Garrison Access 6 | . . . . . 1 1 . . . . 1 . . . . 2 . . . . 1 . . . . Network Hub 3 | . . . . . . . . . . . . . . . 3 . . . . . . . . . . Machines Sabotaged . | . . . . . . . . . . . . . . . . . . . . . . . . . . Garrisons Compromised 1 | . . . . . . . . . . . . . . . . 1 . . . . . . . . . Overloaded Fab Kills . | . . . . . . . . . . . . . . . . . . . . . . . . . . Hacking | -11 -10 -10 -10 -9 -8 -7 -7 -7 -7 -6 -6 -6 -6 -6 -6 -5 -5 -5 -5 -4 -4 -4 -4 -3 -2 --------- Run | Scr Mat Min Exi Min Mat Fac Low Low Dat Pro Fac Ext Cet Arc Hub Fac Upp Upp Zhi Pro Fac Arm Lab Res Res Machines Accessed 98 | . 9 . 1 . 14 5 1 . 4 . 4 15 1 . 7 12 . . 3 3 5 6 1 3 4 Terminals 54 | . 6 . . . 8 3 . . . . 1 15 1 . 7 4 . . . 1 3 2 . 1 2 Fabricators 9 | . . . . . . . . . . . 1 . . . . 2 . . . 1 1 2 . 1 1 Repair Stations 6 | . 1 . . . 1 . . . . . . . . . . 2 . . . . . 1 . . 1 Recycling Units 8 | . 2 . . . 2 . . . . . 1 . . . . . . . . 1 . 1 . 1 . Scanalyzers 5 | . . . . . 2 1 . . . . . . . . . 2 . . . . . . . . . Garrison Access 6 | . . . . . 1 1 . . . . 1 . . . . 2 . . . . 1 . . . . Total Hacks 399 | . 29 . 1 . 39 15 1 . 32 . 8 34 1 . 25 86 . . 12 8 25 27 20 13 23 Successful 242 | . 18 . 1 . 27 5 1 . 32 . 4 20 . . 8 44 . . 12 5 10 17 20 9 9 Failed 157 | . 11 . . . 12 10 . . . . 4 14 1 . 17 42 . . . 3 15 10 . 4 14 Catastrophic 25 | . . . . . 1 2 . . . . 1 . 1 . 5 8 . . . . 1 2 . 2 2 Database Lockouts . | . . . . . . . . . . . . . . . . . . . . . . . . . . Manual 102 | . 6 . 1 . 12 9 . . . . 1 11 . . 6 18 . . . . 17 . 1 3 17 Terminals 208 | . 19 . . . 28 12 . . . . 2 34 1 . 25 37 . . . 2 20 7 . 6 15 Fabricators 35 | . . . . . . . . . . . 4 . . . . 14 . . . 3 3 2 . 5 4 Repair Stations 38 | . 7 . . . 2 . . . . . . . . . . 12 . . . . . 13 . . 4 Recycling Units 16 | . 3 . . . 2 . . . . . 1 . . . . . . . . 3 . 5 . 2 . Scanalyzers 24 | . . . . . 5 1 . . . . . . . . . 18 . . . . . . . . . Garrison Access 12 | . . . . . 2 2 . . . . 1 . . . . 5 . . . . 2 . . . . Terminal Hacks 154 | . 11 . 1 . 16 4 1 . 32 . 1 16 . . 6 16 . . 12 1 6 5 20 3 3 Record 35 | . . . . . . . . . 11 . . . . . . . . . 4 . . . 20 . . Part Schematic 18 | . 1 . . . . 1 . . 10 . . . . . . . . . 4 . . 2 . . . Robot Schematic 8 | . . . . . . . . . 8 . . . . . . . . . . . . . . . . Robot Analysis 1 | . . . . . 1 . . . . . . . . . . . . . . . . . . . . Prototype ID Bank 19 | . 2 . . . 2 . . . 3 . 1 1 . . 1 2 . . 4 . 2 1 . . . Open Door 11 | . . . . . . . 1 . . . . 8 . . . . . . . 1 . 1 . . . Level Access Points 4 | . . . . . . . . . . . . . . . . 1 . . . . 1 1 . . 1 Branch Access Points 5 | . . . . . 1 1 . . . . . . . . . . . . . . 1 . . 1 1 Terminal Index 4 | . 1 . . . 1 . . . . . . 1 . . . . . . . . . . . 1 . Repair Station Index 1 | . . . . . . . . . . . . . . . . 1 . . . . . . . . . Scanalyzer Index 1 | . . . . . 1 . . . . . . . . . . . . . . . . . . . . Alert Level 8 | . . . . . 2 . . . . . . 1 . . 1 3 . . . . 1 . . . . Unreport Threat 10 | . . . . . 2 1 . . . . . 1 . . 3 3 . . . . . . . . . Locate Traps 10 | . 2 . . . 2 1 . . . . . 2 . . . 2 . . . . . . . . 1 Recall Investigation 1 | . . . . . . . . . . . . . . . . 1 . . . . . . . . . Recall Extermination 1 | . . . . . . . . . . . . . . . . 1 . . . . . . . . . Hauler Manifests 3 | . 1 . . . 1 . . . . . . . . . . 1 . . . . . . . . . Registered Prototypes 2 | . . . . . . . . . . . . . . . . 1 . . . . . . . 1 . Zone Layout 11 | . 4 . . . 3 . . . . . . 2 . . 1 . . . . . 1 . . . . EX-Prototype ID Bank 1 | . . . 1 . . . . . . . . . . . . . . . . . . . . . . Fabricator Hacks 12 | . . . . . . . . . . . 1 . . . . 3 . . . 2 1 2 . 3 . Network Status 6 | . . . . . . . . . . . 1 . . . . 2 . . . . 1 1 . 1 . Load Schematic 2 | . . . . . . . . . . . . . . . . . . . . 1 . . . 1 . Build 4 | . . . . . . . . . . . . . . . . 1 . . . 1 . 1 . 1 . Repair Station Hacks 29 | . 5 . . . 2 . . . . . . . . . . 12 . . . . . 8 . . 2 Scan Component 16 | . 3 . . . 1 . . . . . . . . . . 6 . . . . . 5 . . 1 Repair 13 | . 2 . . . 1 . . . . . . . . . . 6 . . . . . 3 . . 1 Recycling Unit Hacks 6 | . . . . . . . . . . . 1 . . . . . . . . 2 . 2 . 1 . Report Inventory 2 | . . . . . . . . . . . . . . . . . . . . 1 . 1 . . . Retrieve Components 4 | . . . . . . . . . . . 1 . . . . . . . . 1 . 1 . 1 . Scanalyzer 11 | . . . . . 3 . . . . . . . . . . 8 . . . . . . . . . Insert Component 9 | . . . . . 2 . . . . . . . . . . 7 . . . . . . . . . Analyze 2 | . . . . . 1 . . . . . . . . . . 1 . . . . . . . . . Garrison Access Hacks 5 | . . . . . 1 . . . . . 1 . . . . 2 . . . . 1 . . . . Seal Access 5 | . . . . . 1 . . . . . 1 . . . . 2 . . . . 1 . . . . Unauthorized Hacks 25 | . 2 . . . 5 1 . . . . . 4 . . 2 3 . . . . 2 . . 2 4 Terminals 13 | . . . . . 3 . . . . . . 4 . . 2 . . . . . 2 . . . 2 Track 1 | . . . . . . . . . . . . . . . . . . . . . 1 . . . . Botnet 8 | . . . . . 2 . . . . . . 4 . . 1 . . . . . . . . . 1 Disrupt 1 | . . . . . 1 . . . . . . . . . . . . . . . . . . . . Operators 2 | . . . . . . . . . . . . . . . . . . . . . 1 . . . 1 Sabotage 1 | . . . . . . . . . . . . . . . 1 . . . . . . . . . . Fabricators 7 | . . . . . . . . . . . . . . . . 3 . . . . . . . 2 2 Prioritize 1 | . . . . . . . . . . . . . . . . . . . . . . . . . 1 Fabnet 4 | . . . . . . . . . . . . . . . . 2 . . . . . . . 1 1 Haulers 2 | . . . . . . . . . . . . . . . . 1 . . . . . . . 1 . Repair Stations . | . . . . . . . . . . . . . . . . . . . . . . . . . . Recycling Units 4 | . 2 . . . 2 . . . . . . . . . . . . . . . . . . . . Tunnel 4 | . 2 . . . 2 . . . . . . . . . . . . . . . . . . . . Scanalyzers 1 | . . . . . . 1 . . . . . . . . . . . . . . . . . . . Extract 1 | . . . . . . 1 . . . . . . . . . . . . . . . . . . . Garrison Access . | . . . . . . . . . . . . . . . . . . . . . . . . . . Data Cores Recovered 2 | . 1 . . . . . . . . . . . . . . . . . . . . 1 . . . Used . | . . . . . . . . . . . . . . . . . . . . . . . . . . Hacking Detections 69 | . 7 . . . 12 4 . . . . 3 10 1 . 6 10 . . . 2 5 3 . 2 4 Full Trace Events 5 | . . . . . 1 . . . . . . . . . . 2 . . . 1 . . . 1 . Feedback Events 2 | . . . . . . . . . . . . . . . . 2 . . . . . . . . . Corruption 2 | . . . . . . . . . . . . . . . . 2 . . . . . . . . . Feedback Blocked . | . . . . . . . . . . . . . . . . . . . . . . . . . . Robot Schematics Acquired 8 | . . . . . . . . . 8 . . . . . . . . . . . . . . . . Robots Built 3 | . . . . . . . . . . . . . . . . 3 . . . . . . . . . Authchips . | . . . . . . . . . . . . . . . . . . . . . . . . . . Time 84 | . . . . . . . . . . . . . . . . 84 . . . . . . . . . Total Robot Build Rating 18 | . . . . . . . . . . . . . . . . 18 . . . . . . . . . Part Schematics Acquired 28 | . 1 . . . 1 9 . . 10 . . . . . . 1 . . 4 . . 2 . . . Parts Built 5 | . . . . . . . . . . . . . . . . . . . . 1 . 2 . 2 . Authchips 1 | . . . . . . . . . . . . . . . . . . . . 1 . . . . . Time 277 | . . . . . . . . . . . . . . . . . . . . 102 . 58 . 117 . Total Part Build Rating 36 | . . . . . . . . . . . . . . . . . . . . 8 . 14 . 14 . Parts Repaired 12 | . 2 . . . 1 . . . . . . . . . . 6 . . . . . 3 . . . Time 636 | . 62 . . . 38 . . . . . . . . . . 338 . . . . . 162 . . 36 Parts Recycled . | . . . . . . . . . . . . . . . . . . . . . . . . . . Recycled Matter . | . . . . . . . . . . . . . . . . . . . . . . . . . . Retrieved Matter . | . . . . . . . . . . . . . . . . . . . . . . . . . . Retrieved Components 29 | . . . . . . . . . . . 6 . . . . . . . . 10 . 3 . 10 . Parts Scanalyzed 4 | . . . . . 2 . . . . . . . . . . 2 . . . . . . . . . Part Schematics Acquired 2 | . . . . . 1 . . . . . . . . . . 1 . . . . . . . . . Parts Damaged . | . . . . . . . . . . . . . . . . . . . . . . . . . . Bothacking | -11 -10 -10 -10 -9 -8 -7 -7 -7 -7 -6 -6 -6 -6 -6 -6 -5 -5 -5 -5 -4 -4 -4 -4 -3 -2 ------------ Run | Scr Mat Min Exi Min Mat Fac Low Low Dat Pro Fac Ext Cet Arc Hub Fac Upp Upp Zhi Pro Fac Arm Lab Res Res Used RIF Installer . | . . . . . . . . . . . . . . . . . . . . . . . . . . Robots Hacked 9 | . . . . . . . . . . . . . . 1 . . . . . 3 2 1 1 1 . Non-combat 1 | . . . . . . . . . . . . . . 1 . . . . . . . . . . . Combat 7 | . . . . . . . . . . . . . . . . . . . . 3 2 1 . 1 . Robot Hacks Applied 1 | . . . . . . . . . . . . . . 1 . . . . . . . . . . . check_alert 1 | . . . . . . . . . . . . . . 1 . . . . . . . . . . . Manual 1 | . . . . . . . . . . . . . . . . . . . . . . . 1 . . Relay Couplers Released 3 | . . . . . . 3 . . . . . . . . . . . . . . . . . . . Machine Destruction 3 | . . . . . . 3 . . . . . . . . . . . . . . . . . . . Fabnet Peak Effective % 6 | . . . . . . . . . . . . . . . . . . . . 6 6 6 6 2 . Autooverrided 7 | . . . . . . . . . . . . . . . . . . . . 3 2 1 . 1 . Robots Rewired 26 | . . . . . . . . . . . . 16 . . . . . . . 10 . . . . . Allies Hacked . | . . . . . . . . . . . . . . . . . . . . . . . . . . Hacks Repelled . | . . . . . . . . . . . . . . . . . . . . . . . . . . Allies | -11 -10 -10 -10 -9 -8 -7 -7 -7 -7 -6 -6 -6 -6 -6 -6 -5 -5 -5 -5 -4 -4 -4 -4 -3 -2 -------- Run | Scr Mat Min Exi Min Mat Fac Low Low Dat Pro Fac Ext Cet Arc Hub Fac Upp Upp Zhi Pro Fac Arm Lab Res Res Total Allies 55 | . . 3 . . . . . . 1 . . 28 . . 3 3 . . . 13 2 1 . 1 . Largest Group 11 | . . 3 1 1 . . . . 1 . . 11 7 1 3 3 . . . 10 2 . . 1 . Highest-Rated Group 356 | . . 40 16 16 . . . . 59 . . 335 335 152 327 90 . . . 356 112 . . 84 . Highest-Rated Ally 159 | . . 16 16 16 . . . . 59 . . 159 159 152 109 30 . . . 56 56 . . 84 . Total Orders 6 | . . . . . . . . . 1 . . 2 . . 1 . 1 . . 1 . . . . . STAY 3 | . . . . . . . . . 1 . . 1 . . 1 . . . . . . . . . . FOLLOW 1 | . . . . . . . . . . . . 1 . . . . . . . . . . . . . EXPLORE 2 | . . . . . . . . . . . . . . . . . 1 . . 1 . . . . . Ally Attacks 252 | . . 11 . 1 . . . . . . . 141 37 1 14 5 . . . 30 7 1 . 4 . Total Damage 5380 | . . 114 . 16 . . . . . . . 2683 1001 43 381 90 . . . 900 113 12 . 27 . Kills 32 | . . 7 . . . . . . . . . 13 6 . 2 . . . . 4 . . . . . Allies Corrupted 2 | . . . . . . . . . . . . 1 . . . . . . . 1 . . . . . Allies Melted 4 | . . . . . . . . . . . . 1 . . . 2 . . . . 1 . . . . Field Lobotomies 4 | . . . . . . . . . 1 . . . . . 3 . . . . . . . . . . Intel | -11 -10 -10 -10 -9 -8 -7 -7 -7 -7 -6 -6 -6 -6 -6 -6 -5 -5 -5 -5 -4 -4 -4 -4 -3 -2 ------- Run | Scr Mat Min Exi Min Mat Fac Low Low Dat Pro Fac Ext Cet Arc Hub Fac Upp Upp Zhi Pro Fac Arm Lab Res Res Robot Analysis Total 129 | . . . . . 1 . . . 128 . . . . . . . . . . . . . . . . Derelict Logs Recovered 12 | . . 2 . 1 . . 2 1 . 2 . . . . . . 2 . . 2 . . . . . Drone Launches 2 | . . . . . . . . . . . . . . . . . 1 . . 1 . . . . . Drone Recoveries 1 | . . . . . . . . . . . . . . . . . 1 . . . . . . . . Exploration | -11 -10 -10 -10 -9 -8 -7 -7 -7 -7 -6 -6 -6 -6 -6 -6 -5 -5 -5 -5 -4 -4 -4 -4 -3 -2 ------------- Run | Scr Mat Min Exi Min Mat Fac Low Low Dat Pro Fac Ext Cet Arc Hub Fac Upp Upp Zhi Pro Fac Arm Lab Res Res Turns Passed 31112 | 7 1671 1605 885 920 4226 1244 1224 648 190 786 670 2531 424 1732 3067 2310 325 319 200 1322 1508 907 858 837 696 Spaces Moved 14102 | 1 642 633 368 373 1791 493 600 506 115 467 375 1099 177 223 1220 1185 261 304 165 658 867 395 418 445 321 Core 66 | . . . . . . . . . . . . . . 59 . . . . . . . . . . 7 Treads 2485 | 1 642 633 368 373 468 . . . . . . . . . . . . . . . . . . . . Legs 11548 | . . . . . 1323 493 600 506 115 467 375 1099 177 164 1220 1185 261 304 165 658 867 392 418 445 314 Wheels . | . . . . . . . . . . . . . . . . . . . . . . . . . . Hover 3 | . . . . . . . . . . . . . . . . . . . . . . 3 . . . Flight . | . . . . . . . . . . . . . . . . . . . . . . . . . . Fastest Speed 50 | 160 160 240 240 240 112 186 115 115 115 115 115 190 190 190 100 100 100 100 100 100 100 108 120 120 50 Average Speed 160 | 160 213 240 240 240 184 187 184 115 119 117 138 190 191 563 144 101 100 100 100 100 105 112 120 120 119 Slowest Speed 1600 | 160 240 240 240 240 260 190 190 115 190 190 192 190 260 1600 190 170 100 100 100 100 108 190 120 120 260 Overloaded Moves . | . . . . . . . . . . . . . . . . . . . . . . . . . . Propulsion Burnouts . | . . . . . . . . . . . . . . . . . . . . . . . . . . Robots Hopped . | . . . . . . . . . . . . . . . . . . . . . . . . . . Cave-ins Triggered . | . . . . . . . . . . . . . . . . . . . . . . . . . . Teleports 2 | . . . . . . . . . . . . . . . . . . . . . . 1 . 1 . Exploration Rate (%) 57 | 2 93 94 70 83 93 18 77 68 79 61 12 92 64 85 69 26 61 65 60 57 25 25 98 15 12 Regions Visited 25 Branch Regions 17 Pre-discovered Areas 35 | . 2 2 . 1 2 . 2 . 20 . . . . . . . 1 . 3 2 . . . . . Known Exits Taken 9 | . . . . . . 1 1 1 1 1 . . . . . 1 . . . 1 1 . 1 . . Unknown Exits Taken 16 | 1 1 1 1 1 1 . . . . . 1 1 1 1 1 . 1 1 1 . . 1 . 1 . Scrap Searched 20 | . . 1 . 2 . . 4 3 . 3 . . . . . . 1 2 . 4 . . . . . Spaces Dug 173 | . . . . . 2 2 3 4 . . 11 . . . 28 47 . . . . 25 15 4 14 18 Terrain Destroyed 1139 | . . . . 12 143 121 37 19 . 13 62 2 3 21 356 57 4 1 . 83 38 15 4 14 134 Melee 95 | . . . . . 2 2 3 4 . . 2 . . . 8 39 . . . . 6 7 4 14 4 Projectile 128 | . . . . . 11 . . . . . . 2 3 21 23 10 4 1 . 2 19 8 . . 24 AOE 916 | . . . . 12 130 119 34 15 . 13 60 . . . 325 8 . . . 81 13 . . . 106 Terrain Rammed . | . . . . . . . . . . . . . . . . . . . . . . . . . . Walls Destroyed . | . . . . . . . . . . . . . . . . . . . . . . . . . . Machines Disabled . | . . . . . . . . . . . . . . . . . . . . . . . . . . Actions | -11 -10 -10 -10 -9 -8 -7 -7 -7 -7 -6 -6 -6 -6 -6 -6 -5 -5 -5 -5 -4 -4 -4 -4 -3 -2 --------- Run | Scr Mat Min Exi Min Mat Fac Low Low Dat Pro Fac Ext Cet Arc Hub Fac Upp Upp Zhi Pro Fac Arm Lab Res Res Total 20393 | 8 828 680 371 388 2402 737 703 555 155 692 513 1452 223 629 2006 2038 308 313 189 1276 1276 781 678 665 527 Wait 3703 | . 79 18 2 6 192 128 74 25 21 211 84 92 2 356 381 597 33 1 . 471 244 284 164 158 80 Move 14077 | . 641 632 367 372 1790 492 599 505 114 466 374 1098 176 222 1219 1184 260 303 164 657 866 394 417 444 321 Hop . | . . . . . . . . . . . . . . . . . . . . . . . . . . Pick Up 217 | . 21 4 1 . 42 7 5 2 5 . 9 8 2 2 22 22 1 2 3 16 9 12 8 7 7 Fast Attach 104 | . 3 . . . 25 5 . . . . 2 2 6 5 4 11 2 1 5 8 11 7 5 . 2 Attach 104 | 2 3 1 . . 9 3 2 . 1 . 3 1 1 2 11 20 . . 2 11 5 4 2 4 17 Detach 14 | . . . . . 1 1 . . . . 1 . . 2 . 5 . . 1 1 1 . . . 1 Swap 321 | 1 8 2 . 3 50 26 10 10 2 7 10 16 6 5 52 20 2 . 1 12 26 19 10 6 17 Drop 305 | 5 8 3 1 1 72 10 6 2 5 1 14 18 11 3 34 10 3 3 6 22 18 21 11 6 11 Fire 1017 | . 46 20 . 6 200 63 3 6 7 7 11 51 19 31 249 74 7 3 . 40 79 15 30 . 50 Melee 282 | . 19 . . . 3 2 4 5 . . 5 . . 1 9 95 . . 7 . 17 25 31 38 21 Ram . | . . . . . . . . . . . . . . . . . . . . . . . . . . Kick 29 | . . . . . 2 . . . . . . . . . 25 . . . . . . . . 2 . Crush . | . . . . . . . . . . . . . . . . . . . . . . . . . . Escape Stasis 10 | . . . . . . . . . . . . 10 . . . . . . . . . . . . . Rewire 194 | . . . . . . . . . . . . 156 . . . . . . . 38 . . . . . Trap 16 | . . . . . 16 . . . . . . . . . . . . . . . . . . . . Miscellaneous . | . . . . . . . . . . . . . . . . . . . . . . . . . . Route ------- -11/Scrapyard -10/Materials (discovered 5 exits: [*Mat x3] / [*Min x2]) -10/Mines (discovered 3 exits: [*Mat x2] / *Exi) -10/Exiles -9/Mines (discovered 2 exits: *Mat x2) -8/Materials (discovered 3 exits: *Fac x3) -7/Factory (discovered 4 exits: *Sto x2 / *Low x2) -7/Lower Caves -7/Lower Caves (discovered 2 exits: *Fac / *Dat) -7/Data Miner -6/Proximity Caves -6/Factory (discovered 2 exits: [*Low] / *Ext) -6/Extension (discovered 2 exits: *Fac / *Cet) -6/Cetus -6/Archives (discovered 3 exits: *Fac / *Hub x2) -6/Hub_04(d) (discovered 2 exits: *Fac x2) -5/Factory (discovered 5 exits: Fac x4 / *Upp) -5/Upper Caves -5/Upper Caves (discovered 2 exits: *Fac / *Zhi) -5/Zhirov -4/Proximity Caves -4/Factory (discovered 7 exits: Res x4 / *Upp x2 / *Arm) -4/Armory (discovered 3 exits: Res x2 / *Lab) -4/Lab -3/Research (discovered 3 exits: *Res / Qua x2) -2/Research (discovered 5 exits: Acc x3 / Tes x2) History --------- Turn | Location | Event 8 | -11/Scrapyard | Discovered new exit (range 0) 8 | -11/Scrapyard | Entered Materials 212 | -10/Materials | Discovered new exit (range 12) 272 | -10/Materials | Discovered new exit (range 9) 317 | -10/Materials | Build established: Mutant 803 | -10/Materials | Repaired Lgt. Treads 840 | -10/Materials | Repaired Broken Lgt. Treads 952 | -10/Materials | Discovered new exit (range 8) 1101 | -10/Materials | Discovered new exit (range 14) 1518 | -10/Materials | Discovered new exit (range 16) 1679 | -10/Materials | Entered Mines 1767 | -10/Mines | Learned location of Zion (-6) 1887 | -10/Mines | Learned 2 Materials zone layouts 1909 | -10/Mines | Deemed a non-threat by the Exiles lab entrance 1911 | -10/Mines | Discovered new exit (range 5) 1983 | -10/Mines | Assisted by bots powering up and referring to "LRC-V3" 2017 | -10/Mines | Received a Rocket Launcher from a helpful Derelict 2027 | -10/Mines | Discovered new exit (range 8) 2068 | -10/Mines | Discovered new exit (range 6) 2145 | -10/Mines | Core integrity fell below 50% 2700 | -10/Mines | A weapon hastily lodged in a ceiling crevice suddenly fell to the ground 2956 | -10/Mines | Joined a pair of Derelicts in attacking an 0b10 outpost 3284 | -10/Mines | Entered Exiles 3284 | -10/Exiles | Accompanied by 1 ally 3349 | -10/Exiles | Met 8R-AWN 3381 | -10/Exiles | Met EX-HEX 3475 | -10/Exiles | Met EX-DEC 3818 | -10/Exiles | Met EX-BIN 3849 | -10/Exiles | Aligned with FarCom system 3851 | -10/Exiles | Given EX-Vault access code 3911 | -10/Exiles | Opened EX-Vault 3926 | -10/Exiles | Found Field Lobotomy Kit 3980 | -10/Exiles | Warned to stay clear of 0b10 Research branches 4143 | -10/Exiles | Discovered new exit (range 10) 4169 | -10/Exiles | Left Exiles lab with Field Lobotomy Kit 4169 | -10/Exiles | Entered Mines 4169 | -9/Mines | Accompanied by 1 ally 4196 | -9/Mines | Met a Derelict bent on vengeance 4801 | -9/Mines | Discovered new exit (range 16) 4994 | -9/Mines | Discovered new exit (range 12) 5089 | -9/Mines | Entered Materials 5089 | -8/Materials | Evolved 4 slots: Propulsion x2, Utility x2 5610 | -8/Materials | Build established: Scavenger-Mutant 5803 | -8/Materials | Discovered new exit (range 16) 7553 | -8/Materials | Discovered new exit (range 12) 7593 | -8/Materials | Core integrity fell below 50% 7902 | -8/Materials | Discovered new exit (range 13) 7980 | -8/Materials | Build established: Mutant 8046 | -8/Materials | Repaired Imp. Light Armor Plating 8494 | -8/Materials | Build established: Skirmisher 9089 | -8/Materials | First assault squad dispatched 9315 | -8/Materials | Entered Factory 9315 | -7/Factory | Evolved 2 slots: Utility x1, Weapon x1 9452 | -7/Factory | Build established: Scavenger-Skirmisher 9715 | -7/Factory | First assault squad dispatched 10014 | -7/Factory | Identified exit to Storage 10014 | -7/Factory | Identified exit to Lower Caves 10559 | -7/Factory | Entered Lower Caves 10737 | -7/Lower Caves | Build established: Skirmisher 11776 | -7/Lower Caves | Discovered new exit (range 7) 11782 | -7/Lower Caves | Identified exit to Lower Caves 11783 | -7/Lower Caves | Entered another Lower Caves area 11796 | -7/Lower Caves | Discovered new exit (range 5) 11879 | -7/Lower Caves | Learned Factory stockpile data 11963 | -7/Lower Caves | Spotted B-75 Beast 12279 | -7/Lower Caves | Discovered new exit (range 15) 12294 | -7/Lower Caves | Encountered a Warlord checkpoint 12340 | -7/Lower Caves | Build established: Assassin 12430 | -7/Lower Caves | Identified exit to Data Miner 12431 | -7/Lower Caves | Entered Data Miner 12431 | -7/Data Miner | Discovered new exit (range 6) 12449 | -7/Data Miner | Met Data Miner 12479 | -7/Data Miner | Learned location of Section 7 (-3) 12479 | -7/Data Miner | Acquired the access code to Warlord's prototype stash 12499 | -7/Data Miner | Received God Mode back door access code from Data Miner 12524 | -7/Data Miner | Assimilated Data Miner with FLK Orb 12568 | -7/Data Miner | Interfaced with the Data Conduit 12575 | -7/Data Miner | Destroyed *Hamborger 12581 | -7/Data Miner | Found Prototype Hackware 12584 | -7/Data Miner | Found Prototype Hackware 12586 | -7/Data Miner | Found Prototype Hackware 12590 | -7/Data Miner | Found Prototype Hackware 12620 | -7/Data Miner | Identified exit to Proximity Caves 12621 | -7/Data Miner | Entered Proximity Caves 12952 | -6/Proximity Caves | Learned Factory stockpile data 13244 | -6/Proximity Caves | Build established: Skirmisher 13256 | -6/Proximity Caves | Discovered new exit (range 6) 13262 | -6/Proximity Caves | Identified exit to Factory 13407 | -6/Proximity Caves | Entered Factory 13407 | -6/Factory | Evolved 2 slots: Utility x2 13409 | -6/Factory | Loaded intel: 326 machine locations 13919 | -6/Factory | Discovered new exit (range 7) 13919 | -6/Factory | Discovered new exit (range 19) 14077 | -6/Factory | Entered Extension 14078 | -6/Extension | Loaded intel: 41 machine locations 14284 | -6/Extension | Rescued a captive Derelict 14313 | -6/Extension | Rescued a captive Derelict 14314 | -6/Extension | Rescued a captive Derelict 14426 | -6/Extension | Build established: Scavenger-Skirmisher 14512 | -6/Extension | Rescued a captive Derelict 14723 | -6/Extension | Rescued a captive Derelict 14724 | -6/Extension | Rescued a captive Derelict 14755 | -6/Extension | Rescued a captive Derelict 14757 | -6/Extension | Rescued a captive Derelict 15190 | -6/Extension | Spotted B-75 Beast 15202 | -6/Extension | Allies destroyed B-75 Beast 15214 | -6/Extension | Spotted B-75 Beast 15229 | -6/Extension | Allies destroyed B-75 Beast 15480 | -6/Extension | Rescued a captive Derelict 15557 | -6/Extension | Rescued A7 15613 | -6/Extension | Rescued a captive Derelict 15618 | -6/Extension | Rescued a captive Derelict 15725 | -6/Extension | Discovered new exit (range 10) 15727 | -6/Extension | Discovered new exit (range 6) 15738 | -6/Extension | Build established: Scavenger-Tank 16125 | -6/Extension | Build established: Scavenger-Skirmisher 16608 | -6/Extension | Entered Cetus 16608 | -6/Cetus | Accompanied by 7 allies (A7) 16609 | -6/Cetus | Loaded intel: 24 machine locations 16613 | -6/Cetus | Acquired a Cetus Manufacturing Module code from A7 16634 | -6/Cetus | Spotted Cetus Guard 16634 | -6/Cetus | Spotted Cetus Guard 16636 | -6/Cetus | Spotted Cetus Guard 16638 | -6/Cetus | Spotted Cetus Guard 16640 | -6/Cetus | Allies destroyed Cetus Guard 16652 | -6/Cetus | Allies destroyed Cetus Guard 16666 | -6/Cetus | Allies destroyed Cetus Guard 16671 | -6/Cetus | Allies destroyed Cetus Guard 16835 | -6/Cetus | Cetus Manufacturing Module disabled 16922 | -6/Cetus | System corruption reached 10% 16979 | -6/Cetus | Escorted A7 to Cetus Mainframe 16994 | -6/Cetus | Discovered new exit (range 20) 17032 | -6/Cetus | Entered Archives 17032 | -6/Archives | Accompanied by 1 ally (A7) 17033 | -6/Archives | Loaded intel: 8 machine locations 17037 | -6/Archives | Received a hacking code to weaken MAIN.C 17164 | -6/Archives | Discovered new exit (range 15) 17222 | -6/Archives | Discovered new exit (range 19) 17682 | -6/Archives | Build established: Scavenger-Mutant 18671 | -6/Archives | Discovered new exit (range 20) 18764 | -6/Archives | Entered Hub_04(d) 18765 | -6/Hub_04(d) | Loaded intel: 109 machine locations 18964 | -6/Hub_04(d) | Build established: Scavenger-Tank 19170 | -6/Hub_04(d) | Discovered new exit (range 19) 19640 | -6/Hub_04(d) | Network Hub disabled 20087 | -6/Hub_04(d) | Intercept squad dispatched 20098 | -6/Hub_04(d) | Spotted Tracker 20103 | -6/Hub_04(d) | Destroyed Tracker 20105 | -6/Hub_04(d) | Spotted Combat Programmer 20113 | -6/Hub_04(d) | Destroyed Combat Programmer 20297 | -6/Hub_04(d) | Spotted Lightning 20300 | -6/Hub_04(d) | Spotted Lightning 20301 | -6/Hub_04(d) | Spotted Lightning 20302 | -6/Hub_04(d) | Assimilated Lightning with FLK Orb 20318 | -6/Hub_04(d) | Assimilated Lightning with FLK Orb 20324 | -6/Hub_04(d) | Assimilated Lightning with FLK Orb 20388 | -6/Hub_04(d) | Found Exp. Phase Shifter 20405 | -6/Hub_04(d) | Found Exp. Phase Shifter 20440 | -6/Hub_04(d) | Found EM Dispersion Field 20582 | -6/Hub_04(d) | Build established: Scavenger-Mutant 20591 | -6/Hub_04(d) | Destroyed Lightning 20601 | -6/Hub_04(d) | Found Exp. Targeting Computer 20611 | -6/Hub_04(d) | Found Prototype Energy Cannon 20670 | -6/Hub_04(d) | Destroyed Lightning 20771 | -6/Hub_04(d) | Destroyed Lightning 20794 | -6/Hub_04(d) | Found Exp. Targeting Computer 20851 | -6/Hub_04(d) | Identified EMDS 20856 | -6/Hub_04(d) | Network Hub disabled 21343 | -6/Hub_04(d) | Discovered new exit (range 9) 21360 | -6/Hub_04(d) | Spotted Lightning 21368 | -6/Hub_04(d) | Spotted Lightning 21371 | -6/Hub_04(d) | Spotted Lightning 21637 | -6/Hub_04(d) | Destroyed Lightning 21664 | -6/Hub_04(d) | Destroyed Lightning 21702 | -6/Hub_04(d) | Destroyed Lightning 21772 | -6/Hub_04(d) | Network Hub disabled 21831 | -6/Hub_04(d) | Entered Factory 21831 | -5/Factory | Evolved 2 slots: Power x1, Utility x1 21832 | -5/Factory | Identified exit to Upper Caves 21834 | -5/Factory | Loaded intel: 307 machine locations 21848 | -5/Factory | Identified System Mapper 22015 | -5/Factory | Identified Deep Network Scanner 22015 | -5/Factory | Identified Ghost Barrier 22015 | -5/Factory | Identified Quantum Router 22586 | -5/Factory | Intercept squad dispatched 22598 | -5/Factory | Spotted Tracker 22619 | -5/Factory | Spotted Combat Programmer 22636 | -5/Factory | System corruption reached 10% 22640 | -5/Factory | Destroyed Tracker 22665 | -5/Factory | Destroyed Combat Programmer 22669 | -5/Factory | Found Prototype Energy Gun 22670 | -5/Factory | Identified Immobilizer 22687 | -5/Factory | Lost 9 parts (1p2n2u4w) 22774 | -5/Factory | Repaired Broken EM Dispersion Field? 22837 | -5/Factory | Repaired Centrium Medium Armor Plating 22896 | -5/Factory | Repaired Centrium Medium Armor Plating? 22966 | -5/Factory | Repaired Enh. Biometal Leg? 23032 | -5/Factory | Repaired Enh. Biometal Leg? 23459 | -5/Factory | Identified exit to Factory 23614 | -5/Factory | Fabricated B-60 Warrior? 23619 | -5/Factory | Repaired Enh. Biometal Leg 24141 | -5/Factory | Entered Upper Caves 24307 | -5/Upper Caves | Learned location of 1 exit from Factory 24451 | -5/Upper Caves | Discovered new exit (range 15) 24466 | -5/Upper Caves | Entered another Upper Caves area 24469 | -5/Upper Caves | Discovered exit to Factory (range 15) 24535 | -5/Upper Caves | Build established: Scavenger-Gunner 24775 | -5/Upper Caves | Discovered new exit (range 10) 24785 | -5/Upper Caves | Entered Zhirov 24787 | -5/Zhirov | Discovered new exit (range 3) 24805 | -5/Zhirov | Met Zhirov 24833 | -5/Zhirov | Zhirov requested help retrieving the SGEMP Prototype 24850 | -5/Zhirov | Found Alien Artifact 24850 | -5/Zhirov | Identified Integrated Reactor 24850 | -5/Zhirov | Installed Integrated Reactor, increased core energy generation (+10) 24931 | -5/Zhirov | Found Alien Artifact 24985 | -5/Zhirov | Entered Proximity Caves 25329 | -4/Proximity Caves | Received a Behemoth hack from an annoying Tinkerer 25701 | -4/Proximity Caves | Snuck into a huge 0b10 base via the rear entrance 25731 | -4/Proximity Caves | Derelicts attacked a huge 0b10 base 25801 | -4/Proximity Caves | Discovered exit to Factory (range 8) 25842 | -4/Proximity Caves | Build established: Scavenger-Mutant 26015 | -4/Proximity Caves | Fabricated Centrium Medium Armor Plating (x1) 26056 | -4/Proximity Caves | Spotted B-86 Titan 26169 | -4/Proximity Caves | Build established: Scavenger-Tank 26182 | -4/Proximity Caves | Destroyed B-86 Titan 26307 | -4/Proximity Caves | Entered Factory 26307 | -4/Factory | Accompanied by 2 allies 26307 | -4/Factory | Evolved 2 slots: Propulsion x1, Utility x1 26308 | -4/Factory | Identified exit to Research 26309 | -4/Factory | Loaded intel: 265 machine locations 26504 | -4/Factory | Discovered new exit (range 7) 26643 | -4/Factory | Spotted B-86 Titan 26939 | -4/Factory | Garrison activated, responded to threat 27001 | -4/Factory | Identified exit to Upper Caves 27160 | -4/Factory | Spotted B-86 Titan 27354 | -4/Factory | Build established: Scavenger-Mutant 27427 | -4/Factory | Identified exit to Armory 27608 | -4/Factory | Intercept squad dispatched 27619 | -4/Factory | Spotted Tracker 27620 | -4/Factory | Spotted Tracker 27629 | -4/Factory | Destroyed Tracker 27640 | -4/Factory | Destroyed Tracker 27643 | -4/Factory | Spotted Combat Programmer 27650 | -4/Factory | Destroyed Combat Programmer 27650 | -4/Factory | Spotted Combat Programmer 27659 | -4/Factory | Destroyed Combat Programmer 27744 | -4/Factory | Build established: Scavenger-Tank 27779 | -4/Factory | Lost 6 parts (1n2u3w) 27815 | -4/Factory | Entered Armory 27816 | -4/Armory | Loaded intel: 86 machine locations 28037 | -4/Armory | Repaired Enh. Biometal Leg 28058 | -4/Armory | Build established: Scavenger-Mutant 28092 | -4/Armory | Repaired Enh. Biometal Leg 28258 | -4/Armory | Repaired Enh. Biometal Leg 28360 | -4/Armory | Found Fusion Bomb Launcher 28381 | -4/Armory | Build established: Scavenger-Tank 28542 | -4/Armory | Identified Transdimensional Reconstructor 28542 | -4/Armory | Warped through subspace to slip node 28542 | -4/Armory | Discovered new exit (range 1) 28546 | -4/Armory | Fabricated Imp. Force Field? 28679 | -4/Armory | Found Fusion Bomb Launcher 28682 | -4/Armory | Found Fusion Bomb Launcher 28721 | -4/Armory | Build established: Hacker-Mutant 28722 | -4/Armory | Entered Lab 28722 | -4/Lab | Discovered exit to Research (range 9) 28736 | -4/Lab | Hidden lab's door opened automatically 28736 | -4/Lab | Sensor layout match revealed 28737 | -4/Lab | Gained access to the hidden lab's interior 28924 | -4/Lab | Found Integrated Reactor 28924 | -4/Lab | Installed Integrated Reactor, increased core energy generation (+10) 28940 | -4/Lab | Found Alien Artifact 28940 | -4/Lab | Identified Core Expander 28940 | -4/Lab | Installed Core Expander, added new Utility slot 28957 | -4/Lab | Found Transdimensional Reconstructor 29012 | -4/Lab | Decrypted terminal 29012 | -4/Lab | Acquired modification code for an L2 power cell 29106 | -4/Lab | Decrypted terminal 29392 | -4/Lab | Found Prototype Protection 29393 | -4/Lab | Detected by scanners 29396 | -4/Lab | Found Quantum Router 29409 | -4/Lab | Confronted by A5 29414 | -4/Lab | Destroyed A5 with decrypted code from the hidden lab 29420 | -4/Lab | Found Corrupted Prototype Energy Gun 29421 | -4/Lab | Identified Hyp. EM Gauss Rifle 29425 | -4/Lab | Found Hyp. EM Gauss Rifle 29514 | -4/Lab | Identified Med. Regenerative Plating 29580 | -4/Lab | Entered Research 29580 | -3/Research | Evolved 2 slots: Utility x2 29581 | -3/Research | Loaded intel: 95 machine locations 29664 | -3/Research | Found Hellfire Missile Launcher 29667 | -3/Research | Found Hellfire Missile Launcher 29770 | -3/Research | Identified exit to Quarantine 29887 | -3/Research | Found Antimissile System 29904 | -3/Research | Build established: Hacker-Assassin 29983 | -3/Research | Fabricated Imp. Force Field? 30197 | -3/Research | Intercept squad dispatched 30214 | -3/Research | Spotted Tracker 30215 | -3/Research | Spotted Tracker 30226 | -3/Research | Spotted Combat Programmer 30239 | -3/Research | Warped through subspace 30400 | -3/Research | Discovered new exit (range 15) 30417 | -3/Research | Entered another Research area 30417 | -2/Research | Evolved 2 slots: Power x1, Propulsion x1 30418 | -2/Research | Loaded intel: 94 machine locations 30718 | -2/Research | Identified exit to Testing 30718 | -2/Research | Identified exit to Access 30729 | -2/Research | Build established: Generator-Assassin 30854 | -2/Research | Lost 3 parts (1p2u) 30963 | -2/Research | Cargo convoy interrupted 30964 | -2/Research | Spotted Striker 30964 | -2/Research | Spotted Striker 30964 | -2/Research | Spotted Executioner 30986 | -2/Research | Destroyed Striker 30986 | -2/Research | Destroyed Striker 30997 | -2/Research | Destroyed Executioner 31024 | -2/Research | Intercept squad dispatched 31027 | -2/Research | Lost 11 parts (3p6u2w) 31035 | -2/Research | Destroyed 14 combat bots 31037 | -2/Research | Spotted Tracker 31038 | -2/Research | Spotted Tracker 31051 | -2/Research | Destroyed Tracker 31056 | -2/Research | Spotted Combat Programmer 31070 | -2/Research | System corruption reached 10% 31074 | -2/Research | Spotted Combat Programmer 31077 | -2/Research | Destroyed Tracker 31081 | -2/Research | Core integrity fell below 50% 31100 | -2/Research | Core integrity fell below 20% 31110 | -2/Research | Destroyed Combat Programmer 31113 | -2/Research | Destroyed by Combat Programmer with EMDS Last Messages --------------- 31094_ Force Lance destroyed. 31100_ EMDS Slug penetrates Wall. 31102_ Penetrated by EMDS Slug. 31104_ Force Lance destroyed. 31104_ Adv. Terrain Scan Processor destroyed. 31104_ EMDS Slug penetrates Earth. 31106_ =XNT:=8JG43#G WADNL:S1ZA 31110_ U-05 Engineer builds a Wall. 31110_ Combat Programmer fries systems beyond repair. 31110_ Combat Programmer destroyed. 31110_ Penetrated by EMDS Slug. 31111_ Acquired 30 matter. 31112_ Acquired 10 matter. 31112_ U-05 Engineer builds a Wall. 31113_ Acquired 10 matter. 31113_ Penetrated by EMDS Slug. Map ----- +----------------------------------------------------+ | ###### """ #### R ######?? | | ###### """ #### " " % #######? | | ###### #### "" ############## | | ###### # # # ##### | | ################### ##### | | ######################### | | ########################## = | | ######################### % | | ######################### ##### | | ######################### # %% ##### | | ############################ # ## ######## | | ?######################## !# # # # ##?#?# | | ######################### # # # ######## | | ######################### % # # ###?#### ? | | ######################### ###### ######## ? | | ######################### # ######## ? | | ######################### + ##### ? | | ######################### # ####?#? | | ######################### # # # | | ###?##################### # + # | | #?#####################; # # ? # | | #?#####################; # # ?# | | ##?##################### + ##### # ?? ## | | ################# # u # ##### # ??? | | ################# #;;##### ##### #?##### | | #########?####### !@;#### ###?+#+###?#?? | | ######???######## !!%##### # ?##??## | | ##?##?###?####### !%p!! + ##??#? | | ##?#?############ [!!#!!""## # ? ?##???? | | ###############?######;# ## # ###?#?####???? | | ## ################## ### ###? ? ? ?? | | ## # ?# ######## ###?? ? ???? | | ### ##### #?#T ### #### """ ???? | | # ##### # ? #? """ ????? | | # ]]##### # ? ?# """ ? ???? | | # ]=##### #? ? ? + ? ????? | | # ##### #? ??? ??? ???? | | # / ##### # ?### ###? """ ?????? | | # ##### # ? ###? ###??""" ?????? | | ###+#############/###### ? #?## ##? """??? ??? | | ###? #?#? #?# ? ??????? | | ##?? ???### ###? ????????? | | ##? ? #??? ##?#??#???????? | | ### ? ##?#+?##???????????? | | ############ ### ???# ? ? ?? ????????? | | """ ############ #?? ?#? ?? ? ???????????? | | """ ##########?# #?? ? ? ? ? ??? ??????? | | """ ############ ? ?????? ?????????? | | ############ * ? # ?????????????? | | ############ ?+ ? ??? ????????? | +----------------------------------------------------+ Best States ------------- Heat Dissipation 100 Coolant Potential 100 Energy Generation 118 Energy Capacity 1200 Matter Stores 300 Matter Capacity 600 Sight Range 20 Robot Scan Range 15 Terrain Scan Range 24 Terrain Scan Density 210 Jamming Range 16 Power Amplification 30 Armor Coverage 675 Resistance: KI 25 Resistance: EM 75 Propulsion Shielding 90 Weapon Shielding 66 Weapon Cycling 15 Melee Speed Boost 20 Phase Shifting 20 Evasion (%) 82 Targeting Accuracy 12 Melee Accuracy 16 Recoil Reduction 4 Kinecelleration 30 Offensive Hacking 20 Defensive Hacking 25 Authchip Count 1 Item Schematics ----------------- Hcp. Storage Unit | -10/Materials | Hacked Med. Armor Plating | -8/Materials | Scanalyzed Imp. Light Armor Plating | -7/Factory | Extracted Shock Absorption System | -7/Factory | Extracted EM Shotgun | -7/Factory | Extracted Com. Battery | -7/Factory | Extracted Hpw. Tractor Beam | -7/Factory | Extracted Imp. Salvage Targeting Computer | -7/Factory | Extracted Field Recycling Unit | -7/Factory | Extracted Weight Redist. System | -7/Factory | Extracted Lyr. Medium Armor Plating | -7/Factory | Hacked Combat Drone Bay | -7/Data Miner | Free Lgt. Regenerative Plating | -7/Data Miner | Free Cld. Cesium-ion Thruster | -7/Data Miner | Free Gravity Neutralizing Apparatus | -7/Data Miner | Free Imp. Force Field | -7/Data Miner | Free Adv. Heat Sink | -7/Data Miner | Free KE Penetrator | -7/Data Miner | Free Imp. Coolant Injector | -7/Data Miner | Free Nuclear Pulse Array | -7/Data Miner | Free Imp. Heavy Machine Gun | -7/Data Miner | Free Centrium Medium Armor Plating | -5/Factory | Scanalyzed Assault Drone Bay | -5/Zhirov | Free Exp. Heat Sink | -5/Zhirov | Free Exp. Optical Array | -5/Zhirov | Free Imp. Arc Thrower | -5/Zhirov | Free Enh. Nova Cannon | -4/Armory | Hacked Fusion Bomb Launcher | -4/Armory | Hacked Robot Schematics ------------------ M-28 Smith | -7/Data Miner | Free S-27 Virus | -7/Data Miner | Free Y-54 Guardian | -7/Data Miner | Free A-15 Conveyor | -7/Data Miner | Free H-66 Slayer | -7/Data Miner | Free B-48 Gladiator | -7/Data Miner | Free B-60 Warrior | -7/Data Miner | Free X-62 Marksman | -7/Data Miner | Free Fabricated ------------ B-60 Warrior | x3 | -5/Factory | Preloaded Centrium Medium Armor Plating | x1 | -4/Proximity Caves | Authchip Imp. Force Field | x2 | -4/Armory | Preloaded Imp. Force Field | x2 | -3/Research Alien Tech Used ----------------- Integrated Reactor Transdimensional Reconstructor Core Expander Achievements -------------- Decrypted! Challenges ------------ None Game ------ Seed HugeCargoNegator Manual? 0 Play Time 03:45:20 Cumulative 525.1 hours Start 2021.11.28 @ 01:22:57 End 2021.11.29 @ 01:32:36 Sessions 7 Manual Loads 0 Difficulty Rogue Special Mode None Game No. 508 Rogue 508 Adventurer 0 Explorer 0 Win Type - Total 14 Types 9/1/3/1/0/0/0/0/0 Lore% 86 Gallery% 94 Achievement% 74 Wizard Run 0 Options --------- ASCII 0 Keyboard 0 Movement Mouse Keybinds 1 Fullscreen 2 Font 24/Smallcaps Map View 76x50 Tactical HUD 1 Map Filters NONE Filters NONE Steam 1 RUN: 88788221-c94e-400f-892e-6b4c8a0784c1